[Event "Titled Tuesday Blitz May 25 2021"]
[White "Vaishali, Rameshbabu"]
[Black "Grochal, Joey"]
[WhiteFideId "5091756"]
[BlackFideId "1019945"]
[WhiteElo "2313"]
[BlackElo "2265"]
[Result "0-1"]
[Round "04"]
[TimeControl "180+1"]
[Date "2021.05.25"]
[WhiteClock "0:00:03"]
[BlackClock "0:00:51"]

1. Nf3 {[%clk 0:02:57]}  Nf6 {[%clk 0:02:59]} 2. c4 {[%clk 0:02:56]}  e6 {[%clk 0:03:00]} 3. Nc3 {[%clk 0:02:53]}  d5 {[%clk 0:03:00]} 4. e3 {[%clk 0:02:52]}  Be7 {[%clk 0:03:00]} 5. b3 {[%clk 0:02:52]}  O-O {[%clk 0:02:59]} 6. Bb2 {[%clk 0:02:52]}  b6 {[%clk 0:02:59]} 7. Qc2 {[%clk 0:02:51]}  Bb7 {[%clk 0:02:59]} 8. Be2 {[%clk 0:02:49]}  c5 {[%clk 0:02:58]} 9. cxd5 {[%clk 0:02:44]}  Nxd5 {[%clk 0:02:56]} 10. h4 {[%clk 0:02:41]}  Nb4 {[%clk 0:02:46]} 11. Qb1 {[%clk 0:02:40]}  Ba6 {[%clk 0:02:46]} 12. d4 {[%clk 0:01:43]}  cxd4 {[%clk 0:02:33]} 13. Nxd4 {[%clk 0:01:42]}  Bxe2 {[%clk 0:02:28]} 14. Kxe2 {[%clk 0:01:30]}  N8c6 {[%clk 0:02:23]} 15. Nxc6 {[%clk 0:01:25]}  Nxc6 {[%clk 0:02:23]} 16. Qe4 {[%clk 0:01:25]}  Rc8 {[%clk 0:02:16]} 17. Rh3 {[%clk 0:01:17]}  Bf6 {[%clk 0:02:09]} 18. g4 {[%clk 0:01:09]}  Ne7 {[%clk 0:02:00]} 19. Rc1 {[%clk 0:01:06]}  Nd5 {[%clk 0:01:49]} 20. Nxd5 {[%clk 0:00:29]}  exd5 {[%clk 0:01:49]} 21. Qb1 {[%clk 0:00:25]}  Rxc1 {[%clk 0:01:45]} 22. Qxc1 {[%clk 0:00:23]}  Re8 {[%clk 0:01:40]} 23. Rf3 {[%clk 0:00:14]}  Bxb2 {[%clk 0:01:38]} 24. Qxb2 {[%clk 0:00:14]}  d4 {[%clk 0:01:38]} 25. Qd2 {[%clk 0:00:14]}  Re4 {[%clk 0:01:25]} 26. Qd3 {[%clk 0:00:09]}  Rxg4 {[%clk 0:01:22]} 27. Qf5 {[%clk 0:00:09]}  d3+ {[%clk 0:01:14]} 28. Kd2 {[%clk 0:00:09]}  Qc7 {[%clk 0:01:07]} 29. Qxd3 {[%clk 0:00:04]}  Rg6 {[%clk 0:01:04]} 30. Ke2 {[%clk 0:00:03]}  Rd6 {[%clk 0:01:03]} 31. Qc4 {[%clk 0:00:04]}  Qd7 {[%clk 0:01:03]} 32. Kf1 {[%clk 0:00:04]}  g6 {[%clk 0:01:01]} 33. Kg2 {[%clk 0:00:04]}  Qe7 {[%clk 0:00:56]} 34. h5 {[%clk 0:00:04]}  Re6 {[%clk 0:00:54]} 35. hxg6 {[%clk 0:00:03]}  Rxg6+ {[%clk 0:00:53]} 36. Kf1 {[%clk 0:00:03]}  Qd7 {[%clk 0:00:51]} 37. Qc3 {[%clk 0:00:03]}  Qd1+ {[%clk 0:00:51]} 0-1


[Site "https://www.chess.com"]

[Event "Titled Tuesday Blitz May 25 2021"]
[White "Vovk, Orest"]
[Black "Savitski, Andrei"]
[WhiteFideId "14113490"]
[BlackFideId "13506161"]
[WhiteElo "2203"]
[BlackElo "2121"]
[Result "1-0"]
[Round "04"]
[TimeControl "180+1"]
[Date "2021.05.25"]
[WhiteClock "0:00:18"]
[BlackClock "0:00:03"]

1. h3 {[%clk 0:03:00]}  d5 {[%clk 0:02:59]} 2. e4 {[%clk 0:03:01]}  dxe4 {[%clk 0:02:59]} 3. Nc3 {[%clk 0:03:01]}  Nf6 {[%clk 0:02:58]} 4. Qe2 {[%clk 0:03:01]}  Nc6 {[%clk 0:02:57]} 5. Nxe4 {[%clk 0:03:02]}  Nd4 {[%clk 0:02:57]} 6. Nxf6+ {[%clk 0:02:58]}  gxf6 {[%clk 0:02:58]} 7. Qd1 {[%clk 0:02:58]}  Bf5 {[%clk 0:02:57]} 8. d3 {[%clk 0:02:59]}  h5 {[%clk 0:02:53]} 9. Be3 {[%clk 0:02:56]}  e5 {[%clk 0:02:53]} 10. c3 {[%clk 0:02:56]}  Nc6 {[%clk 0:02:52]} 11. Qb3 {[%clk 0:02:49]}  Qd7 {[%clk 0:02:51]} 12. O-O-O {[%clk 0:02:49]}  Be6 {[%clk 0:02:50]} 13. Qxb7 {[%clk 0:02:40]}  Rb8 {[%clk 0:02:50]} 14. Qa6 {[%clk 0:02:40]}  Bh6 {[%clk 0:02:41]} 15. g4 {[%clk 0:02:21]}  Rb6 {[%clk 0:02:37]} 16. Qa4 {[%clk 0:02:09]}  hxg4 {[%clk 0:02:31]} 17. Bg2 {[%clk 0:02:03]}  Bxe3+ {[%clk 0:02:11]} 18. fxe3 {[%clk 0:02:03]}  gxh3 {[%clk 0:02:12]} 19. d4 {[%clk 0:01:20]}  Bg4 {[%clk 0:00:52]} 20. Bf3 {[%clk 0:01:17]}  Bxf3 {[%clk 0:00:47]} 21. Nxf3 {[%clk 0:01:17]}  e4 {[%clk 0:00:47]} 22. Nd2 {[%clk 0:01:10]}  f5 {[%clk 0:00:46]} 23. Nc4 {[%clk 0:01:08]}  Rb7 {[%clk 0:00:23]} 24. Qa6 {[%clk 0:01:00]}  Nd8 {[%clk 0:00:16]} 25. Qf6 {[%clk 0:00:53]}  Rg8 {[%clk 0:00:09]} 26. Rxh3 {[%clk 0:00:40]}  Qe6 {[%clk 0:00:10]} 27. Qxe6+ {[%clk 0:00:32]}  Nxe6 {[%clk 0:00:11]} 28. d5 {[%clk 0:00:28]}  Nc5 {[%clk 0:00:10]} 29. d6 {[%clk 0:00:27]}  Nd3+ {[%clk 0:00:11]} 30. Kc2 {[%clk 0:00:27]}  cxd6 {[%clk 0:00:11]} 31. Nxd6+ {[%clk 0:00:27]}  Ke7 {[%clk 0:00:08]} 32. Nxb7 {[%clk 0:00:28]}  Rg2+ {[%clk 0:00:08]} 33. Rd2 {[%clk 0:00:28]}  Rg6 {[%clk 0:00:08]} 34. b4 {[%clk 0:00:25]}  Ra6 {[%clk 0:00:07]} 35. Kb3 {[%clk 0:00:24]}  Rg6 {[%clk 0:00:04]} 36. Nc5 {[%clk 0:00:23]}  Ne5 {[%clk 0:00:05]} 37. Rh5 {[%clk 0:00:20]}  Nf3 {[%clk 0:00:03]} 38. Rd7+ {[%clk 0:00:18]}  Ke8 {[%clk 0:00:03]} 1-0


[Site "https://www.chess.com"]

[Event "Titled Tuesday Blitz May 25 2021"]
[White "Weetik, Vjacheslav"]
[Black "Zubov, Alexander"]
[WhiteFideId "4153472"]
[BlackFideId "14109409"]
[WhiteElo "2469"]
[BlackElo "2740"]
[Result "1/2-1/2"]
[Round "04"]
[TimeControl "180+1"]
[Date "2021.05.25"]
[WhiteClock "0:00:05"]
[BlackClock "0:00:19"]

1. e4 {[%clk 0:02:54]}  c5 {[%clk 0:02:58]} 2. Nf3 {[%clk 0:02:53]}  e6 {[%clk 0:02:58]} 3. d4 {[%clk 0:02:54]}  cxd4 {[%clk 0:02:59]} 4. Nxd4 {[%clk 0:02:54]}  a6 {[%clk 0:02:59]} 5. c4 {[%clk 0:02:55]}  Nf6 {[%clk 0:02:58]} 6. Nc3 {[%clk 0:02:55]}  Bb4 {[%clk 0:02:58]} 7. Qd3 {[%clk 0:02:55]}  Qc7 {[%clk 0:02:58]} 8. a3 {[%clk 0:02:54]}  Be7 {[%clk 0:02:58]} 9. Be2 {[%clk 0:02:47]}  Nc6 {[%clk 0:02:44]} 10. Nxc6 {[%clk 0:02:36]}  dxc6 {[%clk 0:02:31]} 11. Qg3 {[%clk 0:02:33]}  Qxg3 {[%clk 0:01:58]} 12. hxg3 {[%clk 0:02:34]}  e5 {[%clk 0:01:58]} 13. Be3 {[%clk 0:02:26]}  b5 {[%clk 0:01:57]} 14. Rc1 {[%clk 0:02:04]}  Be6 {[%clk 0:01:56]} 15. f3 {[%clk 0:01:55]}  O-O {[%clk 0:01:55]} 16. Kf2 {[%clk 0:01:50]}  h5 {[%clk 0:01:52]} 17. cxb5 {[%clk 0:01:31]}  cxb5 {[%clk 0:01:42]} 18. b4 {[%clk 0:01:13]}  Rfc8 {[%clk 0:01:33]} 19. Nb1 {[%clk 0:01:10]}  g6 {[%clk 0:01:23]} 20. Nd2 {[%clk 0:01:08]}  Kf8 {[%clk 0:01:03]} 21. Bd3 {[%clk 0:01:02]}  Ke8 {[%clk 0:00:59]} 22. Ke2 {[%clk 0:01:02]}  Nd7 {[%clk 0:00:53]} 23. Rhd1 {[%clk 0:00:43]}  Rcb8 {[%clk 0:00:48]} 24. Nb1 {[%clk 0:00:38]}  Nb6 {[%clk 0:00:43]} 25. Nc3 {[%clk 0:00:28]}  Nc4 {[%clk 0:00:34]} 26. Bxc4 {[%clk 0:00:28]}  Bxc4+ {[%clk 0:00:33]} 27. Kf2 {[%clk 0:00:28]}  a5 {[%clk 0:00:31]} 28. Nd5 {[%clk 0:00:26]}  Bxd5 {[%clk 0:00:30]} 29. Rxd5 {[%clk 0:00:25]}  axb4 {[%clk 0:00:30]} 30. axb4 {[%clk 0:00:16]}  Bxb4 {[%clk 0:00:29]} 31. Rxe5+ {[%clk 0:00:16]}  Kf8 {[%clk 0:00:28]} 32. Rb1 {[%clk 0:00:17]}  Bd6 {[%clk 0:00:22]} 33. Rexb5 {[%clk 0:00:16]}  Rxb5 {[%clk 0:00:22]} 34. Rxb5 {[%clk 0:00:16]}  Ra2+ {[%clk 0:00:23]} 35. Kf1 {[%clk 0:00:13]}  Bxg3 {[%clk 0:00:23]} 36. Rd5 {[%clk 0:00:10]}  Ra1+ {[%clk 0:00:16]} 37. Ke2 {[%clk 0:00:10]}  Ra2+ {[%clk 0:00:17]} 38. Rd2 {[%clk 0:00:10]}  Rxd2+ {[%clk 0:00:16]} 39. Kxd2 {[%clk 0:00:09]}  Ke7 {[%clk 0:00:16]} 40. Ke2 {[%clk 0:00:09]}  Ke6 {[%clk 0:00:15]} 41. Bd4 {[%clk 0:00:09]}  f5 {[%clk 0:00:15]} 42. Kd3 {[%clk 0:00:08]}  g5 {[%clk 0:00:15]} 43. Be3 {[%clk 0:00:07]}  g4 {[%clk 0:00:15]} 44. exf5+ {[%clk 0:00:06]}  Kxf5 {[%clk 0:00:15]} 45. fxg4+ {[%clk 0:00:06]}  Kxg4 {[%clk 0:00:16]} 46. Ke2 {[%clk 0:00:06]}  h4 {[%clk 0:00:17]} 47. Bc5 {[%clk 0:00:05]}  h3 {[%clk 0:00:18]} 48. gxh3+ {[%clk 0:00:05]}  Kxh3 {[%clk 0:00:19]} 1/2-1/2


[Site "https://www.chess.com"]

[Event "Titled Tuesday Blitz May 25 2021"]
[White "Xiong, Jeffery"]
[Black "Ibrahimli, Murad"]
[WhiteFideId "2047640"]
[BlackFideId "13410229"]
[WhiteElo "2724"]
[BlackElo "2109"]
[Result "1-0"]
[Round "04"]
[TimeControl "180+1"]
[Date "2021.05.25"]
[WhiteClock "0:00:09"]
[BlackClock "0:00:01"]

1. e4 {[%clk 0:03:00]}  c5 {[%clk 0:03:00]} 2. Nf3 {[%clk 0:03:00]}  d6 {[%clk 0:03:00]} 3. Bb5+ {[%clk 0:03:00]}  Bd7 {[%clk 0:02:59]} 4. c4 {[%clk 0:03:01]}  Nf6 {[%clk 0:02:58]} 5. Nc3 {[%clk 0:03:01]}  g6 {[%clk 0:02:57]} 6. d4 {[%clk 0:03:01]}  cxd4 {[%clk 0:02:57]} 7. Nxd4 {[%clk 0:03:02]}  Bg7 {[%clk 0:02:57]} 8. O-O {[%clk 0:03:03]}  O-O {[%clk 0:02:56]} 9. h3 {[%clk 0:03:03]}  a6 {[%clk 0:02:52]} 10. Bxd7 {[%clk 0:03:03]}  Qxd7 {[%clk 0:02:53]} 11. Be3 {[%clk 0:03:02]}  Nc6 {[%clk 0:02:52]} 12. Nxc6 {[%clk 0:03:02]}  Qxc6 {[%clk 0:02:44]} 13. Qd3 {[%clk 0:03:02]}  Nd7 {[%clk 0:02:15]} 14. Nd5 {[%clk 0:03:00]}  Rfe8 {[%clk 0:02:15]} 15. Bd4 {[%clk 0:02:40]}  Ne5 {[%clk 0:02:01]} 16. Qc3 {[%clk 0:02:40]}  e6 {[%clk 0:01:48]} 17. Nb6 {[%clk 0:02:37]}  Qxe4 {[%clk 0:01:11]} 18. Nxa8 {[%clk 0:02:35]}  Rxa8 {[%clk 0:01:11]} 19. Rad1 {[%clk 0:02:34]}  Rc8 {[%clk 0:01:08]} 20. b3 {[%clk 0:02:33]}  g5 {[%clk 0:01:01]} 21. Rfe1 {[%clk 0:02:32]}  Qf5 {[%clk 0:01:02]} 22. Qg3 {[%clk 0:02:30]}  b5 {[%clk 0:00:58]} 23. c5 {[%clk 0:02:30]}  Rc6 {[%clk 0:00:45]} 24. cxd6 {[%clk 0:02:15]}  Rxd6 {[%clk 0:00:45]} 25. Bc3 {[%clk 0:02:12]}  Rxd1 {[%clk 0:00:38]} 26. Rxd1 {[%clk 0:02:13]}  h5 {[%clk 0:00:38]} 27. h4 {[%clk 0:02:05]}  gxh4 {[%clk 0:00:34]} 28. Qxh4 {[%clk 0:02:06]}  Ng6 {[%clk 0:00:26]} 29. Qd8+ {[%clk 0:02:05]}  Kh7 {[%clk 0:00:27]} 30. Bxg7 {[%clk 0:02:05]}  Kxg7 {[%clk 0:00:27]} 31. Qd3 {[%clk 0:02:05]}  Qg5 {[%clk 0:00:26]} 32. Qg3 {[%clk 0:02:04]}  Qf5 {[%clk 0:00:25]} 33. a4 {[%clk 0:01:55]}  h4 {[%clk 0:00:25]} 34. Qc3+ {[%clk 0:01:55]}  Kh7 {[%clk 0:00:25]} 35. Qf3 {[%clk 0:01:46]}  Nf4 {[%clk 0:00:22]} 36. Kh2 {[%clk 0:01:40]}  e5 {[%clk 0:00:18]} 37. Rd8 {[%clk 0:01:29]}  Kg7 {[%clk 0:00:16]} 38. axb5 {[%clk 0:01:27]}  axb5 {[%clk 0:00:15]} 39. Qa8 {[%clk 0:01:22]}  Qh7 {[%clk 0:00:09]} 40. Re8 {[%clk 0:01:14]}  Ne6 {[%clk 0:00:07]} 41. Rxe6 {[%clk 0:00:56]}  Qf5 {[%clk 0:00:08]} 42. Rc6 {[%clk 0:00:35]}  Qxf2 {[%clk 0:00:05]} 43. Qa1 {[%clk 0:00:35]}  Qg3+ {[%clk 0:00:04]} 44. Kh1 {[%clk 0:00:34]}  h3 {[%clk 0:00:04]} 45. Qf1 {[%clk 0:00:34]}  Kf8 {[%clk 0:00:05]} 46. Rc8+ {[%clk 0:00:31]}  Kg7 {[%clk 0:00:05]} 47. Rc7 {[%clk 0:00:26]}  Qxb3 {[%clk 0:00:03]} 48. gxh3 {[%clk 0:00:25]}  Kf8 {[%clk 0:00:02]} 49. Rd7 {[%clk 0:00:19]}  Ke8 {[%clk 0:00:02]} 50. Rd3 {[%clk 0:00:18]}  Qc4 {[%clk 0:00:01]} 51. Rf3 {[%clk 0:00:17]}  Qe4 {[%clk 0:00:01]} 52. Qxb5+ {[%clk 0:00:16]}  Kf8 {[%clk 0:00:02]} 53. Qf1 {[%clk 0:00:12]}  f5 {[%clk 0:00:01]} 54. Qd3 {[%clk 0:00:09]} 1-0


[Site "https://www.chess.com"]

[Event "Titled Tuesday Blitz May 25 2021"]
[White "Yoo, Christopher Woojin"]
[Black "Csonka, Balazs"]
[WhiteFideId "30909694"]
[BlackFideId "742910"]
[WhiteElo "2009"]
[BlackElo "2404"]
[Result "1-0"]
[Round "04"]
[TimeControl "180+1"]
[Date "2021.05.25"]
[WhiteClock "0:00:04"]
[BlackClock "0:00:02"]

1. e4 {[%clk 0:03:00]}  e5 {[%clk 0:02:58]} 2. Nf3 {[%clk 0:02:58]}  Nc6 {[%clk 0:02:58]} 3. Bc4 {[%clk 0:02:55]}  d6 {[%clk 0:02:56]} 4. h3 {[%clk 0:02:43]}  Be7 {[%clk 0:02:54]} 5. d4 {[%clk 0:02:42]}  Nf6 {[%clk 0:02:49]} 6. Nc3 {[%clk 0:02:42]}  O-O {[%clk 0:02:44]} 7. O-O {[%clk 0:02:41]}  exd4 {[%clk 0:01:47]} 8. Nxd4 {[%clk 0:02:34]}  Ne5 {[%clk 0:01:43]} 9. Be2 {[%clk 0:02:30]}  c5 {[%clk 0:01:41]} 10. Nf3 {[%clk 0:02:24]}  Be6 {[%clk 0:01:39]} 11. Bf4 {[%clk 0:02:12]}  Nfd7 {[%clk 0:01:34]} 12. Nd5 {[%clk 0:02:07]}  Nxf3+ {[%clk 0:01:31]} 13. Bxf3 {[%clk 0:02:05]}  Ne5 {[%clk 0:01:31]} 14. Be2 {[%clk 0:02:01]}  Qd7 {[%clk 0:01:07]} 15. Bh2 {[%clk 0:01:40]}  Kh8 {[%clk 0:01:03]} 16. f4 {[%clk 0:01:36]}  Bxd5 {[%clk 0:00:49]} 17. Qxd5 {[%clk 0:01:33]}  Nc6 {[%clk 0:00:49]} 18. c3 {[%clk 0:01:33]}  Rae8 {[%clk 0:00:41]} 19. Rad1 {[%clk 0:01:31]}  Qc7 {[%clk 0:00:30]} 20. Bf3 {[%clk 0:01:23]}  Qb6 {[%clk 0:00:28]} 21. Rd2 {[%clk 0:01:22]}  Rd8 {[%clk 0:00:16]} 22. Kh1 {[%clk 0:01:17]}  Bf6 {[%clk 0:00:15]} 23. Rfd1 {[%clk 0:01:14]}  Ne7 {[%clk 0:00:14]} 24. Qc4 {[%clk 0:01:12]}  d5 {[%clk 0:00:09]} 25. exd5 {[%clk 0:01:11]}  Nf5 {[%clk 0:00:10]} 26. Qd3 {[%clk 0:01:11]}  Nd6 {[%clk 0:00:09]} 27. c4 {[%clk 0:01:04]}  Rfe8 {[%clk 0:00:05]} 28. b3 {[%clk 0:01:04]}  Qb4 {[%clk 0:00:03]} 29. Bg1 {[%clk 0:01:03]}  b6 {[%clk 0:00:03]} 30. Bf2 {[%clk 0:00:58]}  g6 {[%clk 0:00:04]} 31. Re2 {[%clk 0:00:49]}  Kg8 {[%clk 0:00:03]} 32. Rde1 {[%clk 0:00:48]}  Kf8 {[%clk 0:00:02]} 33. Rxe8+ {[%clk 0:00:48]}  Rxe8 {[%clk 0:00:03]} 34. Rxe8+ {[%clk 0:00:47]}  Kxe8 {[%clk 0:00:03]} 35. Qe2+ {[%clk 0:00:44]}  Kd8 {[%clk 0:00:03]} 36. Be1 {[%clk 0:00:44]}  Qa3 {[%clk 0:00:03]} 37. Qc2 {[%clk 0:00:28]}  Qb2 {[%clk 0:00:02]} 38. Qxb2 {[%clk 0:00:27]}  Bxb2 {[%clk 0:00:03]} 39. g4 {[%clk 0:00:27]}  Ke7 {[%clk 0:00:03]} 40. Kg2 {[%clk 0:00:27]}  Bd4 {[%clk 0:00:03]} 41. Be2 {[%clk 0:00:27]}  f5 {[%clk 0:00:03]} 42. Bd3 {[%clk 0:00:27]}  Kf6 {[%clk 0:00:03]} 43. Bh4+ {[%clk 0:00:26]}  Kf7 {[%clk 0:00:02]} 44. Bd8 {[%clk 0:00:25]}  Bf6 {[%clk 0:00:02]} 45. Bc7 {[%clk 0:00:25]}  Be7 {[%clk 0:00:02]} 46. Kf3 {[%clk 0:00:20]}  fxg4+ {[%clk 0:00:01]} 47. hxg4 {[%clk 0:00:20]}  Ke8 {[%clk 0:00:02]} 48. Bb8 {[%clk 0:00:19]}  a6 {[%clk 0:00:02]} 49. Bc7 {[%clk 0:00:18]}  Nc8 {[%clk 0:00:03]} 50. f5 {[%clk 0:00:17]}  g5 {[%clk 0:00:03]} 51. Be5 {[%clk 0:00:15]}  Bd6 {[%clk 0:00:02]} 52. Bf6 {[%clk 0:00:13]}  Be7 {[%clk 0:00:02]} 53. Be5 {[%clk 0:00:06]}  Bd6 {[%clk 0:00:01]} 54. Bc3 {[%clk 0:00:05]}  Kf7 {[%clk 0:00:01]} 55. f6 {[%clk 0:00:05]}  Bf4 {[%clk 0:00:01]} 56. Bxh7 {[%clk 0:00:04]}  Nd6 {[%clk 0:00:01]} 57. Bf5 {[%clk 0:00:03]}  Nxf5 {[%clk 0:00:01]} 58. gxf5 {[%clk 0:00:04]}  Bc1 {[%clk 0:00:01]} 59. Kg4 {[%clk 0:00:04]}  Bf4 {[%clk 0:00:01]} 60. a4 {[%clk 0:00:03]}  Bc1 {[%clk 0:00:01]} 61. Be5 {[%clk 0:00:03]}  b5 {[%clk 0:00:01]} 62. axb5 {[%clk 0:00:03]}  axb5 {[%clk 0:00:02]} 63. cxb5 {[%clk 0:00:04]} 1-0


[Site "https://www.chess.com"]

[Event "Titled Tuesday Blitz May 25 2021"]
[White "Aravindh, Chithambaram VR."]
[Black "Iskusnyh, Sergei"]
[WhiteFideId "5072786"]
[BlackFideId "4120027"]
[WhiteElo "2872"]
[BlackElo "2616"]
[Result "0-1"]
[Round "05"]
[TimeControl "180+1"]
[Date "2021.05.25"]
[WhiteClock "0:00:09"]
[BlackClock "0:00:13"]

1. Nf3 {[%clk 0:03:00]}  d5 {[%clk 0:02:58]} 2. b3 {[%clk 0:03:01]}  Bf5 {[%clk 0:02:57]} 3. Bb2 {[%clk 0:03:01]}  e6 {[%clk 0:02:57]} 4. g3 {[%clk 0:02:57]}  Nf6 {[%clk 0:02:55]} 5. Bg2 {[%clk 0:02:58]}  Be7 {[%clk 0:02:54]} 6. O-O {[%clk 0:02:59]}  h6 {[%clk 0:02:54]} 7. d3 {[%clk 0:02:59]}  O-O {[%clk 0:02:53]} 8. Nbd2 {[%clk 0:02:59]}  c6 {[%clk 0:02:49]} 9. Ne5 {[%clk 0:02:57]}  Nfd7 {[%clk 0:02:46]} 10. e4 {[%clk 0:02:55]}  Bh7 {[%clk 0:02:41]} 11. Nef3 {[%clk 0:02:43]}  a5 {[%clk 0:02:31]} 12. a4 {[%clk 0:02:43]}  Na6 {[%clk 0:02:30]} 13. h4 {[%clk 0:02:38]}  Nb4 {[%clk 0:02:10]} 14. e5 {[%clk 0:02:31]}  c5 {[%clk 0:02:06]} 15. Re1 {[%clk 0:02:30]}  Rc8 {[%clk 0:01:56]} 16. Ba3 {[%clk 0:02:06]}  Nb8 {[%clk 0:01:40]} 17. Rc1 {[%clk 0:01:49]}  N8c6 {[%clk 0:01:32]} 18. Qe2 {[%clk 0:01:31]}  Nd4 {[%clk 0:01:27]} 19. Nxd4 {[%clk 0:01:31]}  cxd4 {[%clk 0:01:27]} 20. Nf3 {[%clk 0:01:21]}  Nxd3 {[%clk 0:01:14]} 21. cxd3 {[%clk 0:01:22]}  Bxa3 {[%clk 0:01:14]} 22. Rxc8 {[%clk 0:01:22]}  Qxc8 {[%clk 0:01:14]} 23. Nxd4 {[%clk 0:01:23]}  Bb4 {[%clk 0:01:06]} 24. Rd1 {[%clk 0:01:18]}  Qc3 {[%clk 0:01:05]} 25. Qg4 {[%clk 0:00:55]}  Bc5 {[%clk 0:00:47]} 26. Ne2 {[%clk 0:00:41]}  Qxb3 {[%clk 0:00:45]} 27. Nf4 {[%clk 0:00:41]}  Bf5 {[%clk 0:00:40]} 28. Qf3 {[%clk 0:00:37]}  Qxa4 {[%clk 0:00:38]} 29. g4 {[%clk 0:00:34]}  Bh7 {[%clk 0:00:38]} 30. g5 {[%clk 0:00:34]}  hxg5 {[%clk 0:00:37]} 31. hxg5 {[%clk 0:00:35]}  Bf5 {[%clk 0:00:37]} 32. Bh3 {[%clk 0:00:25]}  Bxh3 {[%clk 0:00:34]} 33. Nxh3 {[%clk 0:00:26]}  Qd4 {[%clk 0:00:28]} 34. Qg3 {[%clk 0:00:19]}  g6 {[%clk 0:00:25]} 35. Kg2 {[%clk 0:00:17]}  a4 {[%clk 0:00:22]} 36. Rh1 {[%clk 0:00:16]}  a3 {[%clk 0:00:22]} 37. Ng1 {[%clk 0:00:11]}  Ra8 {[%clk 0:00:18]} 38. Qh3 {[%clk 0:00:09]}  Qxf2# {[%clk 0:00:13]} 0-1


[Site "https://www.chess.com"]

[Event "Titled Tuesday Blitz May 25 2021"]
[White "Barp, Alberto"]
[Black "Drygalov, Sergey"]
[WhiteFideId "872555"]
[BlackFideId "24171743"]
[WhiteElo "2589"]
[BlackElo "2846"]
[Result "0-1"]
[Round "05"]
[TimeControl "180+1"]
[Date "2021.05.25"]
[WhiteClock "0:00:03"]
[BlackClock "0:00:04"]

1. d4 {[%clk 0:03:00]}  Nf6 {[%clk 0:02:58]} 2. c4 {[%clk 0:03:00]}  e6 {[%clk 0:02:58]} 3. Nf3 {[%clk 0:02:59]}  d5 {[%clk 0:02:58]} 4. g3 {[%clk 0:02:59]}  dxc4 {[%clk 0:02:56]} 5. Bg2 {[%clk 0:02:58]}  Nc6 {[%clk 0:02:56]} 6. Qa4 {[%clk 0:02:56]}  Bb4+ {[%clk 0:02:51]} 7. Bd2 {[%clk 0:02:56]}  Nd5 {[%clk 0:02:51]} 8. Bxb4 {[%clk 0:02:56]}  Nxb4 {[%clk 0:02:51]} 9. O-O {[%clk 0:02:57]}  Rb8 {[%clk 0:02:46]} 10. Na3 {[%clk 0:02:53]}  O-O {[%clk 0:02:33]} 11. Qb5 {[%clk 0:02:47]}  b6 {[%clk 0:02:23]} 12. Qxc4 {[%clk 0:02:47]}  Ba6 {[%clk 0:02:23]} 13. Nb5 {[%clk 0:02:47]}  Qd5 {[%clk 0:02:22]} 14. Qxd5 {[%clk 0:02:45]}  exd5 {[%clk 0:02:17]} 15. Nc3 {[%clk 0:02:34]}  Rfe8 {[%clk 0:02:01]} 16. Rac1 {[%clk 0:02:00]}  Ne7 {[%clk 0:01:40]} 17. Rfd1 {[%clk 0:01:45]}  Nbc6 {[%clk 0:01:31]} 18. e3 {[%clk 0:01:39]}  Rbd8 {[%clk 0:01:18]} 19. Ne1 {[%clk 0:01:28]}  Na5 {[%clk 0:01:16]} 20. Nd3 {[%clk 0:01:21]}  Bxd3 {[%clk 0:01:13]} 21. Rxd3 {[%clk 0:01:22]}  c6 {[%clk 0:01:13]} 22. Rd2 {[%clk 0:01:17]}  Nc4 {[%clk 0:01:13]} 23. Rdc2 {[%clk 0:01:18]}  Nd6 {[%clk 0:01:13]} 24. Ne2 {[%clk 0:01:10]}  a5 {[%clk 0:01:08]} 25. Nf4 {[%clk 0:01:10]}  g5 {[%clk 0:01:01]} 26. Nd3 {[%clk 0:01:10]}  f6 {[%clk 0:01:01]} 27. b3 {[%clk 0:00:53]}  Kg7 {[%clk 0:00:59]} 28. Nb2 {[%clk 0:00:53]}  Rb8 {[%clk 0:00:57]} 29. Na4 {[%clk 0:00:49]}  h5 {[%clk 0:00:46]} 30. h3 {[%clk 0:00:48]}  g4 {[%clk 0:00:46]} 31. h4 {[%clk 0:00:43]}  b5 {[%clk 0:00:26]} 32. Nc5 {[%clk 0:00:42]}  Kf7 {[%clk 0:00:22]} 33. Bf1 {[%clk 0:00:38]}  Rb6 {[%clk 0:00:18]} 34. Nd3 {[%clk 0:00:35]}  Ne4 {[%clk 0:00:13]} 35. Nf4 {[%clk 0:00:34]}  Rh8 {[%clk 0:00:13]} 36. Bd3 {[%clk 0:00:31]}  Nd6 {[%clk 0:00:10]} 37. Kf1 {[%clk 0:00:31]}  f5 {[%clk 0:00:10]} 38. Ke1 {[%clk 0:00:28]}  Kf6 {[%clk 0:00:10]} 39. Bf1 {[%clk 0:00:28]}  Nf7 {[%clk 0:00:07]} 40. Nd3 {[%clk 0:00:24]}  Ra8 {[%clk 0:00:06]} 41. Nc5 {[%clk 0:00:24]}  Ra7 {[%clk 0:00:07]} 42. Nd3 {[%clk 0:00:21]}  Ra8 {[%clk 0:00:05]} 43. Nf4 {[%clk 0:00:21]}  Rh8 {[%clk 0:00:05]} 44. Ra1 {[%clk 0:00:21]}  Nd6 {[%clk 0:00:05]} 45. Bg2 {[%clk 0:00:19]}  Nf7 {[%clk 0:00:04]} 46. Rac1 {[%clk 0:00:17]}  Nd6 {[%clk 0:00:04]} 47. Rb1 {[%clk 0:00:15]}  Nf7 {[%clk 0:00:04]} 48. Rcc1 {[%clk 0:00:15]}  Nd6 {[%clk 0:00:04]} 49. Bf1 {[%clk 0:00:16]}  Nf7 {[%clk 0:00:04]} 50. Nd3 {[%clk 0:00:16]}  Ra8 {[%clk 0:00:03]} 51. Nc5 {[%clk 0:00:16]}  Ra7 {[%clk 0:00:04]} 52. a4 {[%clk 0:00:17]}  b4 {[%clk 0:00:03]} 53. Nd3 {[%clk 0:00:17]}  Nd6 {[%clk 0:00:03]} 54. Nf4 {[%clk 0:00:18]}  Ne4 {[%clk 0:00:04]} 55. Nxh5+ {[%clk 0:00:17]}  Kf7 {[%clk 0:00:04]} 56. Nf4 {[%clk 0:00:17]}  Nc3 {[%clk 0:00:05]} 57. Rb2 {[%clk 0:00:18]}  Nc8 {[%clk 0:00:05]} 58. Ne2 {[%clk 0:00:18]}  Ne4 {[%clk 0:00:05]} 59. Bg2 {[%clk 0:00:18]}  Ncd6 {[%clk 0:00:05]} 60. Rbc2 {[%clk 0:00:18]}  Rc7 {[%clk 0:00:03]} 61. Nf4 {[%clk 0:00:18]}  Nc3 {[%clk 0:00:03]} 62. Ne2 {[%clk 0:00:17]}  Nce4 {[%clk 0:00:03]} 63. Nf4 {[%clk 0:00:13]}  Nc3 {[%clk 0:00:03]} 64. Nd3 {[%clk 0:00:13]}  Ke6 {[%clk 0:00:02]} 65. Ne5 {[%clk 0:00:09]}  Nde4 {[%clk 0:00:02]} 66. Nd3 {[%clk 0:00:08]}  Kd6 {[%clk 0:00:01]} 67. Nf4 {[%clk 0:00:06]}  c5 {[%clk 0:00:02]} 68. Bxe4 {[%clk 0:00:05]}  fxe4 {[%clk 0:00:01]} 69. Ne2 {[%clk 0:00:05]}  cxd4 {[%clk 0:00:01]} 70. exd4 {[%clk 0:00:06]}  Rbc6 {[%clk 0:00:01]} 71. Nxc3 {[%clk 0:00:07]}  bxc3 {[%clk 0:00:02]} 72. Ke2 {[%clk 0:00:07]}  Ke6 {[%clk 0:00:02]} 73. Ke3 {[%clk 0:00:07]}  Kd6 {[%clk 0:00:03]} 74. Kf4 {[%clk 0:00:07]}  Rf7+ {[%clk 0:00:02]} 75. Kxg4 {[%clk 0:00:07]}  Rf3 {[%clk 0:00:03]} 76. h5 {[%clk 0:00:06]}  Rd3 {[%clk 0:00:03]} 77. Kh4 {[%clk 0:00:06]}  Rxd4 {[%clk 0:00:03]} 78. Rxc3 {[%clk 0:00:06]}  e3+ {[%clk 0:00:03]} 79. Kh3 {[%clk 0:00:06]}  Rxc3 {[%clk 0:00:03]} 80. Rxc3 {[%clk 0:00:07]}  e2 {[%clk 0:00:04]} 81. Re3 {[%clk 0:00:03]}  Re4 {[%clk 0:00:04]} 0-1


[Site "https://www.chess.com"]